bitfinex/quotes_ETHUSD_20250324
["timestamp","ask_amount","ask_price","bid_price","bid_amount"]
[1742806291435,4.78151,2091.4,2091.2,1.05242269]
[1742806291746,4.78191,2091.3,2091.0,6.31477694]
[1742806291911,10.8511,2091.6,2091.2,4.78188]
[1742806292437,3.0,2091.7,2091.4,4.78147]
[1742806292739,6.07,2091.8,2091.4,6.395186]
[1742806293040,6.07,2091.8,2091.6,4.78087]
[1742806293334,6.07,2091.8,2091.6,9.56181]
[1742806293560,6.07,2091.8,2091.7,4.7808]
[1742806293763,6.07,2091.8,2091.7,0.956167]
[1742806294665,10.84979,2092.2,2091.7,6.68738405]
[1742806294874,4.78,2092.1,2091.7,11.46804405]
[1742806295166,4.78,2092.1,2091.7,6.68727405]
[1742806295367,4.78,2092.1,2091.7,11.46798405]
[1742806295535,6.07,2092.2,2091.9,4.78025]
[1742806296037,10.84968,2092.2,2091.9,4.78025]
[1742806296245,10.84968,2092.2,2091.8,5.92724841]
[1742806296578,10.84968,2092.2,2091.8,12.05010841]
[1742806296859,6.07,2092.2,2092.1,4.77988]
[1742806297066,10.84887,2092.6,2092.2,4.77958]
[1742806297267,6.07,2092.6,2092.3,5.38479269]
[1742806297469,6.07,2092.6,2092.3,10.11635]
[1742806297654,6.07,2092.6,2092.3,10.16413812]
[1742806297849,6.07,2092.6,2092.3,10.11635]
[1742806298059,6.07,2092.6,2092.3,11.605948]
[1742806299104,6.07,2092.6,2092.4,0.8031]
[1742806299268,10.84874,2092.6,2092.5,0.97448839]
[1742806299706,6.07,2092.6,2092.5,0.97448839]
[1742806300005,10.84874,2092.6,2092.3,6.826598]
[1742806300171,3.7564,2093.0,2092.3,6.64887334]
[1742806300375,7.77799,2093.0,2092.5,4.77896]
[1742806300682,4.77815,2092.9,2092.5,4.77883]
[1742806300985,7.77799,2093.0,2092.6,5.6252018]
[1742806301185,4.77833,2092.8,2092.6,0.0477818]
[1742806301365,9.5568,2092.8,2092.6,5.329]
[1742806301571,4.77833,2092.8,2092.6,5.329]
[1742806301768,4.77806,2092.9,2092.6,5.329]
[1742806301971,4.77833,2092.8,2092.6,5.329]
[1742806302175,4.77806,2092.9,2092.6,5.329]
[1742806302405,4.77811,2092.9,2092.6,5.329]
[1742806302609,4.77783,2093.0,2092.6,5.329]
[1742806302780,4.77809,2092.9,2092.6,5.329]
[1742806302978,4.77809,2092.9,2092.6,6.896908]
[1742806303303,4.77807,2092.9,2092.6,6.896908]
[1742806303509,4.77832,2092.8,2092.6,6.896908]
[1742806303809,4.77784,2093.0,2092.6,11.675638]
[1742806304110,10.84783,2093.0,2092.4,0.792]
[1742806304259,10.84783,2093.0,2092.4,6.103]
[1742806304260,4.7786,2092.7,2092.4,6.103]
[1742806304463,4.7788,2092.6,2092.4,5.311]
[1742806304791,9.55723,2092.7,2092.4,5.311]
[1742806304987,4.77835,2092.8,2092.4,10.83559112]
[1742806305188,4.77835,2092.8,2092.4,14.51356451]
[1742806305595,4.77835,2092.8,2092.4,19.29257451]
[1742806305793,4.77813,2092.9,2092.4,19.29257451]
[1742806305990,10.84785,2093.0,2092.4,9.73455451]
[1742806306720,4.77897,2092.5,2092.4,0.6977954]
[1742806306907,9.55814,2092.5,2092.3,31.716]
[1742806307106,4.7792,2092.4,2092.3,31.716]
[1742806307310,4.77979,2092.2,2092.0,1.22032556]
[1742806307509,4.78001,2092.1,2091.9,0.72168003]
[1742806308028,4.78011,2092.0,2091.9,0.72168003]
[1742806308384,6.07,2092.1,2092.0,4.78011]
[1742806308640,3.8032,2092.6,2091.9,4.78022]
[1742806308792,4.77904,2092.5,2092.1,4.77986]
[1742806308993,4.77904,2092.5,2092.0,4.78005]
[1742806309211,4.77928,2092.4,2092.0,5.41290606]
[1742806309526,4.77904,2092.5,2092.1,4.77988]
[1742806309896,10.84851,2092.7,2092.2,5.297]
[1742806310097,10.84851,2092.7,2092.3,5.79187539]
[1742806310297,4.77883,2092.6,2092.3,1.84905426]
[1742806310500,4.77883,2092.6,2092.3,1.80126539]
[1742806311019,10.84871,2092.7,2092.3,1.84905459]
[1742806311225,6.07,2092.7,2092.3,6.62843459]
[1742806311429,3.0,2093.0,2092.4,1.19254346]
[1742806311600,4.77816,2092.9,2092.5,4.77885]
[1742806311921,4.77859,2092.7,2092.4,1.19254346]
[1742806312727,4.77876,2092.6,2092.4,1.19254346]
[1742806312925,4.77876,2092.6,2092.3,0.7888]
[1742806313088,4.77876,2092.6,2092.3,5.283]
[1742806313751,4.77909,2092.5,2092.1,6.71058661]
[1742806314052,4.77923,2092.4,2092.1,6.71058661]
[1742806314251,4.77923,2092.4,2092.1,11.98758661]
[1742806314450,4.77953,2092.3,2092.1,16.51530541]
[1742806314637,4.77953,2092.3,2092.1,10.5397188]
[1742806314825,0.7513,2092.7,2092.0,0.70058661]
[1742806314826,4.77988,2092.1,2092.0,0.70058661]
[1742806316059,4.78017,2092.0,2091.8,5.273]
[1742806316222,4.77991,2092.1,2091.8,5.273]
[1742806316424,4.78034,2091.9,2091.8,5.273]
[1742806316726,4.78014,2092.0,2091.8,5.273]
[1742806317229,4.78014,2092.0,2091.6,10.73957661]
[1742806317433,9.56043,2092.0,2091.6,11.81077028]
[1742806317633,4.78014,2092.0,2091.6,11.81077028]
[1742806317832,6.07,2092.4,2092.3,4.77942]
[1742806318336,10.84829,2092.8,2092.5,4.77884]
[1742806318512,4.77811,2092.9,2092.4,4.82685446]
[1742806318717,9.55635,2092.9,2092.5,5.34028545]
[1742806318914,4.77817,2092.9,2092.5,5.34024545]
[1742806319126,6.07,2093.2,2092.6,0.7815]
[1742806319330,4.77768,2093.1,2092.7,4.82607963]
[1742806319530,4.77791,2093.0,2092.7,1.14359951]
[1742806319823,4.77768,2093.1,2092.7,1.14359951]
[1742806320232,4.77791,2093.0,2092.6,0.7815]
[1742806320453,9.55546,2093.1,2092.6,5.56023]
[1742806320646,0.7748,2093.0,2092.4,5.275]
[1742806320942,4.77805,2092.9,2092.4,10.05418]
[1742806321111,13.05115,2093.3,2092.7,4.77831]
[1742806321112,4.77741,2093.2,2092.7,4.77831]
[1742806321317,3.0,2093.1,2092.8,4.77826]
[1742806321519,3.0,2093.2,2092.8,9.55642]
[1742806321712,3.0,2093.2,2092.9,4.77801]
[1742806322243,10.84694,2093.4,2092.7,0.7951]
[1742806322244,6.07,2093.4,2092.7,0.7951]
[1742806322445,6.07,2093.7,2093.5,4.77666]
[1742806322617,10.84601,2093.8,2093.4,4.77684]
[1742806322813,3.0,2093.7,2093.1,0.7891]
[1742806323016,7.77632,2093.7,2093.1,0.7891]
[1742806323223,9.55325,2093.6,2093.2,4.77727]
[1742806323433,4.462952,2093.7,2093.2,0.70058661]
[1742806323633,4.77663,2093.6,2093.2,0.70058661]
[1742806323839,4.77688,2093.5,2093.2,0.70058661]
[1742806324036,4.77703,2093.4,2093.2,0.70058661]
[1742806324352,4.77714,2093.3,2093.2,0.70058661]
[1742806325048,4.77714,2093.3,2092.9,4.77805]
[1742806325625,4.77714,2093.3,2092.9,4.7779]
[1742806326949,4.77738,2093.2,2092.8,0.788]
[1742806327148,1.084738,2093.2,2092.7,5.47901661]
[1742806327447,4.77797,2093.0,2092.7,0.70058661]
[1742806327646,4.7784,2092.8,2092.6,1.40218275]
[1742806328523,5.816206,2092.8,2092.6,1.40218275]
[1742806328724,4.77851,2092.7,2092.6,0.70058661]
[1742806329246,5.816206,2092.8,2092.6,0.70058661]
[1742806329419,5.816206,2092.8,2092.4,4.77913]
[1742806329629,4.77866,2092.7,2092.3,1.40218275]
[1742806329824,4.77896,2092.6,2092.3,1.40218275]
[1742806330019,4.77901,2092.5,2092.3,0.70058661]
[1742806331885,4.77988,2092.1,2092.0,0.70058661]
[1742806332423,6.342841,2092.1,2092.0,0.70058661]
[1742806332734,4.78034,2091.9,2091.6,31.953]
[1742806333056,4.78034,2091.9,2091.6,5.54]
[1742806333230,4.78021,2092.0,2091.6,5.53997]
[1742806333631,4.78038,2091.9,2091.6,5.53997]
[1742806333831,9.5609,2091.9,2091.5,4.78125]
[1742806334058,4.78082,2091.7,2091.4,4.78142]
[1742806334281,4.78082,2091.7,2091.3,5.9768]
[1742806334444,4.77949,2092.3,2091.3,5.9768]
[1742806334445,6.07,2092.6,2092.5,4.77897]
[1742806334641,5.54587,2092.9,2092.2,0.7538]
[1742806334842,4.77793,2093.0,2092.2,0.7538]
[1742806335052,4.77814,2092.9,2092.5,9.55771]
[1742806335241,4.77814,2092.9,2092.5,4.77884]
[1742806335563,4.77844,2092.8,2092.3,4.77928]
[1742806335867,4.77844,2092.8,2092.4,4.77906]
[1742806336062,4.77861,2092.7,2092.3,10.2554477]
[1742806336367,4.77861,2092.7,2092.3,5.4761277]
[1742806336575,4.77876,2092.6,2092.2,5.53343]
[1742806337376,4.77882,2092.6,2092.2,5.53343]
[1742806337541,4.77818,2092.9,2092.3,5.245]
[1742806337747,4.77818,2092.9,2092.5,4.77883]
[1742806337933,10.84783,2093.0,2092.6,4.77874]
[1742806338130,6.07,2093.0,2092.8,4.77818]
[1742806338330,0.62,2093.2,2092.9,4.77801]
[1742806339152,0.62,2093.2,2092.9,4.7779]
[1742806339369,0.62,2093.4,2093.3,4.77714]
[1742806339633,4.77579,2093.9,2093.0,0.7735]
[1742806339634,4.77653,2093.6,2093.2,14.81854]
[1742806340036,4.77653,2093.6,2093.3,4.77714]
[1742806340442,4.77653,2093.6,2093.2,10.04123]
[1742806340632,0.62,2093.9,2093.2,10.04123]
[1742806340837,4.77657,2093.6,2093.2,11.600467]
[1742806341132,6.34702,2093.9,2093.2,5.264]
[1742806341364,0.62,2094.0,2093.4,0.7685]
[1742806341542,5.39472,2094.4,2093.9,4.77555]
[1742806341754,5.951984,2094.4,2093.8,4.77597]
[1742806341963,3.0,2094.2,2093.9,4.77567]
[1742806342166,5.951944,2094.4,2094.0,4.77551]
[1742806342457,5.39474,2094.4,2094.0,4.77532]
[1742806342645,10.16956,2094.4,2094.0,4.77532]
[1742806342847,5.39474,2094.4,2094.1,4.7753]
[1742806343153,5.39474,2094.4,2094.0,4.77532]
[1742806343354,4.77523,2094.2,2093.8,4.77584]
[1742806344075,0.62,2094.4,2094.3,4.77486]
[1742806344274,0.62,2094.4,2094.3,10.10086]
[1742806344478,0.62,2094.8,2094.6,4.77417]
[1742806344676,0.62,2095.0,2094.8,4.77371]
[1742806344873,5.39343,2095.0,2094.7,0.7518]
[1742806345072,5.39343,2095.0,2094.6,5.251467]
[1742806345281,0.62,2095.0,2094.7,1.0572467]
[1742806345475,0.62,2095.0,2094.7,5.8311767]
[1742806345790,0.62,2095.0,2094.8,4.77361]
[1742806345976,0.62,2095.0,2094.7,1.0572467]
[1742806346176,5.39335,2095.0,2094.7,1.0572467]
[1742806346376,0.62,2095.0,2094.8,5.40446637]
[1742806346982,4.77291,2095.2,2095.1,4.77304]
[1742806346983,0.62,2095.2,2095.1,4.77304]
[1742806347186,0.6200019,2095.5,2095.1,4.77287]
[1742806347397,0.6200019,2095.5,2095.2,5.37641477]
[1742806347578,0.6200019,2095.5,2095.3,4.77241]
[1742806347773,0.6200019,2095.5,2095.2,4.7728]
[1742806348008,0.6200019,2095.5,2095.0,0.7874]
[1742806348009,4.77292,2095.2,2094.8,0.63087637]
[1742806348318,0.6200019,2095.5,2094.7,5.47720431]
[1742806348522,0.6200019,2095.5,2095.1,4.77297]
[1742806348719,0.6200019,2095.5,2095.1,4.77303]
[1742806349209,5.3921319,2095.5,2095.2,0.7515]
[1742806349386,4.7734,2095.0,2094.8,0.7515]
[1742806349587,4.77359,2094.9,2094.7,0.70337539]
[1742806349810,7.77372,2094.8,2094.7,0.70337539]
[1742806349992,13.84372,2094.8,2094.7,0.70337539]
[1742806350513,14.62652,2094.8,2094.7,0.70337539]
[1742806350912,4.77458,2094.5,2094.0,31.808]
[1742806351086,4.77464,2094.4,2094.1,3.75168708]
[1742806351287,4.77524,2094.2,2093.8,0.7955]
[1742806351488,4.77547,2094.1,2093.6,4.77643]
[1742806351808,4.77516,2094.2,2093.7,4.77621]
[1742806352018,4.77453,2094.5,2093.6,5.402]
[1742806352201,0.7828,2094.8,2094.4,4.77453]
[1742806352509,9.54687,2095.0,2094.4,9.549]
[1742806352713,4.77341,2095.0,2094.5,4.77436]
[1742806352910,4.77341,2095.0,2094.6,1.432336]
[1742806353113,4.77405,2094.7,2094.3,0.55]
[1742806353694,9.54769,2094.8,2094.3,0.55]
[1742806354009,4.77378,2094.8,2094.3,5.32485]
[1742806354214,9.5477,2094.8,2094.3,0.55]
[1742806354415,9.5477,2094.8,2094.1,5.56309]
[1742806354416,7.77306,2095.1,2094.1,0.7878]
[1742806354578,7.77306,2095.1,2094.2,0.55]
[1742806354579,4.7744,2094.6,2094.2,0.55]
[1742806354986,4.77437,2094.6,2094.2,0.55]
[1742806355289,4.77397,2094.7,2094.2,0.55]
[1742806355494,4.77374,2094.8,2094.2,6.475803]
[1742806355693,4.77395,2094.7,2094.2,6.475803]
[1742806355894,7.77326,2095.0,2094.2,1.700893]
[1742806356089,4.77472,2094.4,2094.2,0.55]
[1742806356298,0.96900019,2095.3,2094.2,6.01]
[1742806356616,7.77304,2095.1,2094.5,5.32431]
[1742806356916,3.0,2095.1,2094.5,5.32439]
[1742806357090,7.77317,2095.1,2094.6,1.550598]
[1742806357291,12.5464,2095.1,2094.6,1.550598]
[1742806357493,3.0,2095.1,2094.7,1.3116]
[1742806357789,3.0,2095.2,2094.8,0.55]
[1742806358006,5.39263,2095.3,2094.9,0.55]
[1742806358199,8.39263,2095.3,2094.9,0.55]
[1742806358401,0.62,2095.3,2094.9,0.55]
[1742806358724,0.62,2095.3,2095.1,0.55]
[1742806359109,0.62,2095.3,2094.9,0.55]
[1742806359299,4.77327,2095.0,2094.7,0.7616]
[1742806359998,9.5467,2095.0,2094.6,0.55]
[1742806360208,0.62,2095.4,2094.4,1.46483059]
[1742806360209,0.7983,2095.1,2094.4,1.46483059]
[1742806360416,4.77382,2094.8,2094.4,10.59989165]
[1742806360726,4.77382,2094.8,2094.5,0.55]
[1742806360924,9.128489,2095.1,2094.4,0.69283059]
[1742806360925,4.77418,2094.6,2094.4,0.69283059]
[1742806361103,4.77418,2094.6,2094.3,26.396]
[1742806361527,4.77454,2094.5,2094.1,0.772]
[1742806361717,14.517489,2095.1,2094.1,0.772]
[1742806361718,0.62,2095.4,2094.2,0.8122]
[1742806361905,0.7800019,2095.5,2094.7,4.77382]
[1742806361906,3.0,2095.2,2094.7,4.77382]
[1742806362112,4.77246,2095.4,2094.9,4.77339]
[1742806362298,4.77246,2095.4,2094.8,5.57971]
[1742806362299,4.77292,2095.2,2095.0,0.55]
[1742806362502,4.77368,2094.9,2094.5,0.7752]
[1742806362804,1.4000019,2095.5,2094.6,6.56]
[1742806363025,3.0,2095.2,2094.8,0.55]
[1742806363198,4.77236,2095.4,2094.9,0.532378]
[1742806363199,4.77239,2095.4,2094.9,0.532378]
[1742806363400,4.77269,2095.3,2094.9,0.532378]
[1742806363708,4.77289,2095.2,2094.9,0.532378]
[1742806363914,4.77315,2095.1,2094.7,0.55]
[1742806364114,9.54635,2095.1,2094.7,0.55]
[1742806364311,7.4700019,2095.5,2095.4,5.56375]
[1742806364312,0.6200019,2095.5,2095.4,5.56375]
[1742806364514,4.76867,2097.1,2095.9,8.27122]
[1742806364716,6.1178295,2096.9,2095.9,31.66109]
[1742806364914,6.1178295,2096.9,2095.7,0.55]
[1742806364915,4.77102,2096.0,2095.7,0.55]
[1742806365116,6.07,2096.3,2095.7,0.55]
[1742806365434,5.612,2096.6,2095.7,0.55]
[1742806365435,4.77791205,2096.1,2095.7,0.55]
[1742806365633,4.771,2096.0,2095.7,1.609385]
[1742806365823,4.771,2096.0,2095.3,32.003]
[1742806365824,0.76646205,2096.1,2095.3,26.39]
[1742806366029,3.0,2095.8,2095.3,26.39]
[1742806366206,4.77199,2095.6,2095.2,0.7574]
[1742806366407,9.54405,2095.6,2095.2,2.349761]
[1742806366607,4.77199,2095.6,2095.2,2.349761]
[1742806366826,6.38646205,2096.1,2095.3,0.55]
[1742806366827,0.00706205,2096.1,2095.3,0.55]
[1742806367133,0.00706205,2096.1,2095.9,0.55]
[1742806367333,0.00706205,2096.1,2096.0,0.55]
[1742806367906,4.77782205,2096.1,2096.0,0.55]
[1742806368105,4.77782205,2096.1,2095.7,0.55]
[1742806368312,4.77789205,2096.1,2095.7,5.32157]
[1742806368513,0.1429867,2097.0,2095.9,3.797]
[1742806368707,0.1429867,2097.0,2096.9,6.11594]
[1742806368929,0.1429867,2097.0,2096.9,1.347]
[1742806369266,0.1429867,2097.0,2096.6,11.07455]
[1742806369460,0.1429867,2097.0,2096.6,0.55]
[1742806369981,0.1429867,2097.0,2096.6,1.159387]
[1742806370111,0.1429867,2097.0,2096.6,0.55]
[1742806370311,4.76901,2096.9,2096.6,0.55]
[1742806370534,4.76943,2096.7,2096.4,0.55]
[1742806370728,0.476943,2096.7,2096.4,0.55]
[1742806370933,0.1429867,2097.0,2096.4,0.55]
[1742806371145,0.1429867,2097.0,2096.7,0.55]
[1742806371340,0.1429867,2097.0,2096.9,5.31894]
[1742806371540,0.1429867,2097.0,2096.9,0.55]
[1742806372018,4.9118767,2097.0,2096.5,0.7974]
[1742806372340,4.76944,2096.7,2096.2,1.92909568]
[1742806372541,4.77004,2096.5,2096.4,0.69628367]
[1742806372746,4.76985,2096.5,2096.4,0.69628367]
[1742806372922,4.76971,2096.6,2096.4,0.69628367]
[1742806373121,4.76973,2096.6,2096.4,0.69628367]
[1742806373325,3.0,2096.6,2096.4,0.69628367]
[1742806373525,3.0,2096.6,2096.5,0.55]
[1742806373755,4.76962,2096.6,2096.5,0.55]
[1742806374214,4.76985,2096.5,2096.4,1.24628367]
[1742806374416,4.77013,2096.4,2096.1,5.808]
[1742806374721,3.8077,2096.5,2096.0,1.13169568]
[1742806374911,4.77047,2096.3,2096.0,1.13169568]
[1742806375115,4.77054,2096.2,2096.0,1.13169568]
[1742806375323,4.77076,2096.1,2096.0,1.13169568]
[1742806376011,4.77076,2096.1,2096.0,0.43541201]
[1742806376215,4.77099,2096.0,2095.6,6.48128367]
[1742806376421,4.77132,2095.9,2095.6,3.80379525]
[1742806376621,4.77167,2095.7,2095.6,0.69628367]
[1742806377726,4.47071306,2095.4,2094.9,5.49510003]
[1742806377922,4.77223,2095.5,2095.0,4.77324]
[1742806378122,3.0,2095.6,2094.9,11.27617003]
[1742806378123,3.0,2095.6,2095.2,9.54547]
[1742806378322,3.0,2096.0,2095.6,4.77175]
[1742806378521,9.5419,2096.1,2095.3,10.55744]
[1742806378522,4.77162,2095.8,2095.3,10.55744]
[1742806378727,4.77178,2095.7,2095.4,0.98453185]
[1742806378946,4.772,2095.6,2095.4,0.43453185]
[1742806379111,4.77213,2095.5,2095.4,0.43453185]
[1742806379535,4.77195,2095.6,2095.4,0.43453185]
[1742806379731,4.77213,2095.5,2095.4,0.43453185]
[1742806380341,4.77213,2095.5,2095.0,0.69517872]
[1742806380342,4.77281,2095.2,2095.1,0.43453185]
[1742806381255,7.77281,2095.2,2095.1,0.43453185]
[1742806381436,10.111596,2095.2,2095.1,0.43453185]
[1742806381630,4.77369,2094.9,2094.6,5.772]
[1742806381944,4.77374,2094.8,2094.3,10.54485]
[1742806382145,13.84281,2095.2,2094.3,10.54477]
[1742806382314,4.77424,2094.6,2094.4,1.126645]
[1742806382515,4.77442,2094.5,2094.3,0.43526642]
[1742806382930,4.77463,2094.4,2094.3,0.43526642]
[1742806383335,6.07,2094.8,2094.3,0.43526642]
[1742806383521,11.6001,2095.3,2094.4,0.55]
[1742806383718,12.5458,2095.2,2094.6,4.77399]
[1742806383918,4.77331,2095.0,2094.6,0.55]
[1742806384115,3.7573,2095.3,2094.6,0.55]
[1742806384116,4.77311,2095.1,2094.6,0.55]
[1742806384515,4.77311,2095.1,2094.2,0.8035]
[1742806384516,4.77395,2094.7,2094.2,0.8035]
[1742806384719,4.77459,2094.5,2094.3,0.557879]
[1742806384931,9.54917,2094.5,2094.3,0.69667125]
[1742806385551,4.77458,2094.5,2094.3,0.69667125]
[1742806385750,9.54916,2094.5,2094.3,0.69667125]
[1742806386055,4.77463,2094.4,2094.3,0.69667125]
[1742806386451,9.54944,2094.4,2094.0,0.43526642]
[1742806386751,4.77463,2094.4,2094.1,0.55]
[1742806386922,4.77487,2094.3,2094.1,0.55]
[1742806387249,0.8122,2094.7,2094.1,0.55]
[1742806387448,4.7743,2094.6,2094.1,5.3252]
[1742806387649,4.7743,2094.6,2094.2,0.55]
[1742806387824,4.7743,2094.6,2094.2,1.31088982]
[1742806388020,0.8122,2094.7,2094.2,1.31088982]
[1742806388227,9.54924,2094.5,2094.1,0.55]
[1742806388522,4.77422,2094.6,2094.1,5.32517]
[1742806389025,9.54859,2094.6,2094.1,0.55]
[1742806389360,6.07,2094.8,2094.5,0.7511]
[1742806389522,6.07,2094.8,2094.7,0.55]
[1742806389523,10.84372,2094.8,2094.7,0.55]
[1742806389865,4.77365,2094.9,2094.6,0.55]
[1742806390032,4.77395,2094.7,2094.6,0.55]
[1742806390221,7.77329,2095.0,2094.6,0.55]
[1742806390419,4.77405,2094.7,2094.5,0.55]
[1742806390751,12.54675,2095.0,2094.5,6.05195664]
[1742806391053,4.77351,2094.9,2094.5,1.27762664]
[1742806391644,4.77328,2095.0,2094.5,1.27762664]
[1742806391961,4.77418,2094.6,2094.5,0.55]
[1742806392252,4.77418,2094.6,2094.4,5.741]
[1742806392453,4.77449,2094.5,2094.2,0.69667125]
[1742806392764,4.77419,2094.6,2094.3,0.55]
[1742806392932,4.77397,2094.7,2094.3,0.55]
[1742806393132,4.77426,2094.6,2094.3,0.55]
[1742806393326,4.77442,2094.5,2094.1,6.272]
[1742806393529,4.77442,2094.5,2094.3,0.55]
[1742806394029,9.54898,2094.5,2094.2,0.55]
[1742806394251,4.77405,2094.7,2094.2,5.32508]
[1742806394452,4.77405,2094.7,2094.3,0.55]
[1742806394933,4.77427,2094.6,2094.2,0.55]
[1742806395275,9.54958,2094.4,2094.2,1.664107]
[1742806395430,4.77486,2094.3,2094.0,6.5315]
[1742806395631,4.77486,2094.3,2094.1,0.55]
[1742806395853,7.77418,2094.6,2094.1,0.55]
[1742806396061,3.0,2094.6,2094.1,0.55]
[1742806396352,4.77495,2094.3,2093.9,6.247]
[1742806396558,4.77471,2094.4,2094.1,0.55]
[1742806397254,4.77497,2094.3,2094.1,0.55]
[1742806397958,4.77497,2094.3,2093.9,5.697]
[1742806397959,4.77497,2094.3,2093.9,6.231]
[1742806398659,4.7751,2094.2,2093.9,6.231]
[1742806398959,4.7751,2094.2,2093.9,7.414479]
[1742806399355,9.55004,2094.3,2093.9,1.733479]
[1742806399557,9.55004,2094.3,2093.9,7.397479]
[1742806399730,4.77497,2094.3,2093.9,7.397479]
[1742806400975,10.84446,2094.5,2094.1,0.55]
[1742806401153,15.61904,2094.5,2094.1,1.7672809]
[1742806401356,4.77465,2094.4,2094.1,1.7672809]
[1742806401885,9.54945,2094.4,2094.1,1.7672809]
[1742806402185,6.07,2094.5,2094.3,6.14123]
[1742806402355,6.07,2094.5,2094.4,11.03452779]
[1742806402544,6.07,2094.5,2094.4,6.25989779]
[1742806403806,6.07,2094.5,2094.4,0.55]
[1742806403945,10.84449,2094.5,2094.2,0.55]
[1742806406359,4.77449,2094.5,2094.2,0.55]
[1742806406571,4.77449,2094.5,2094.2,2.31958709]
[1742806406865,4.77423,2094.6,2094.2,2.36733167]
[1742806407182,4.77449,2094.5,2094.2,2.31958709]
[1742806407682,4.77449,2094.5,2094.2,2.36733168]
[1742806408188,6.07,2094.8,2094.2,2.36733168]
[1742806408392,6.07,2095.1,2094.5,0.55]
[1742806408578,7.77304,2095.1,2094.8,0.55]
[1742806408804,4.77345,2095.0,2094.6,0.55]
[1742806408992,4.77361,2094.9,2094.6,0.55]
[1742806409151,4.77405,2094.7,2094.2,10.78509]
[1742806409358,4.77407,2094.7,2094.4,0.55]
[1742806409586,9.54818,2094.7,2094.4,0.55]
[1742806410070,4.77424,2094.6,2094.5,1.24785293]
[1742806410480,4.77407,2094.7,2094.5,1.24785293]
[1742806411009,0.8307,2096.0,2095.0,5.52639]
[1742806411326,0.8307,2096.0,2095.3,0.55]
[1742806411506,5.60176,2096.0,2095.6,4.77176]
[1742806411662,0.8307,2096.0,2095.6,4.77176]
[1742806411856,3.8307,2096.0,2095.6,9.54355]
[1742806412170,9.939007,2096.0,2095.6,0.55]
[1742806412575,6.939007,2096.0,2095.6,0.55]
[1742806412884,6.938907,2096.0,2095.6,0.55]
[1742806413095,5.6017,2096.0,2095.6,0.55]
[1742806413457,0.8307,2096.0,2095.6,5.32172]
[1742806413667,3.0,2096.1,2095.7,4.7715]
[1742806413885,3.0,2096.1,2095.8,4.77131]
[1742806414184,5.54627,2096.2,2095.8,4.77131]
[1742806414400,0.98777,2096.4,2095.6,0.59771199]
[1742806414550,5.75805,2096.4,2095.7,1.25002]
[1742806414753,4.77081,2096.1,2095.7,5.47165]
[1742806414972,4.77132,2095.9,2095.6,0.55]
[1742806415393,9.54274,2095.9,2095.5,10.42003]
[1742806415602,5.59067,2096.9,2095.7,4.77167]
[1742806415906,0.8217,2096.9,2096.7,4.76924]
[1742806416206,6.07,2096.9,2096.8,4.76917]
[1742806416502,0.1429867,2097.0,2096.9,5.31894]
[1742806416662,0.1429867,2097.0,2096.9,4.76894]
[1742806416868,0.1429867,2097.0,2096.8,11.22757]
[1742806416869,4.9117567,2097.0,2096.8,5.708]
[1742806417168,0.1429867,2097.0,2096.8,5.708]
[1742806417383,0.1429867,2097.0,2096.8,11.579816]
[1742806417558,4.9117067,2097.0,2096.7,4.76936]
[1742806417764,9.9191295,2096.9,2095.9,2.18293296]
[1742806417969,3.0,2096.7,2096.0,4.77079]
[1742806418273,4.77003,2096.5,2096.1,4.77067]
[1742806418574,4.77008,2096.4,2096.0,4.77096]
[1742806418763,0.7943,2096.3,2095.9,1.41953296]
[1742806418963,4.77083,2096.1,2095.9,1.41953296]
[1742806419287,12.6241,2096.5,2096.2,0.55]
[1742806419488,11.6301,2096.5,2096.2,0.55]
[1742806419782,15.61003,2096.5,2096.2,1.082073]
[1742806419986,4.77013,2096.4,2096.2,0.55]
[1742806420586,4.77034,2096.3,2096.1,0.55]
[1742806420788,6.07,2096.3,2095.6,7.2347522]
[1742806421098,4.77044,2096.3,2095.9,4.77103]
[1742806421308,4.77053,2096.2,2095.8,4.77143]
[1742806421507,4.7703,2096.3,2095.6,12.0175322]
[1742806421692,4.77116,2096.0,2095.6,12.0175322]
[1742806421888,4.77084,2096.1,2095.7,6.45053322]
[1742806422067,4.77062,2096.2,2095.8,4.7713]
[1742806422259,4.77088,2096.1,2095.7,6.45060322]
[1742806422459,4.77083,2096.1,2095.7,6.45060322]
[1742806422659,4.77083,2096.1,2095.8,1.84682354]
[1742806423386,9.54176,2096.1,2095.8,1.84682354]
[1742806423603,4.77103,2096.0,2095.7,4.77154]
[1742806423795,9.54219,2096.0,2095.6,5.55197]
[1742806423973,10.84031,2096.3,2095.5,5.32213]
[1742806424176,4.77015,2096.4,2095.8,1.3267]
[1742806424390,3.7775,2096.5,2095.8,11.28913]
[1742806424592,3.0,2096.4,2095.8,1.128913]
[1742806424903,4.77127,2095.9,2095.6,5.59397]
[1742806425117,4.77108,2096.0,2095.6,10.36571]
[1742806425273,10.8404,2096.3,2095.6,0.8221]
[1742806425473,4.77086,2096.1,2095.7,5.42919]
[1742806425867,4.77086,2096.1,2095.7,10.20073]
[1742806426068,9.54185,2096.1,2095.7,5.42915]
[1742806426426,4.77106,2096.0,2095.7,5.42915]
[1742806426624,0.823,2095.9,2095.4,5.739]
[1742806426792,0.823,2095.9,2095.5,4.77213]